bitfinex/quotes_SOLUSD_20241210
["timestamp","ask_amount","ask_price","bid_price","bid_amount"]
[1733798954716,1.5818,216.11,216.02,22.61016996]
[1733798954939,1.5818,216.11,216.06,312.0]
[1733798956651,20.0,216.1,216.06,312.0]
[1733798956957,20.0,216.1,216.0,22.61016996]
[1733798956958,20.0,216.1,215.99,22.61016996]
[1733798957249,0.12549,216.09,215.98,22.61016996]
[1733798958052,0.12549,216.09,215.96,22.61016996]
[1733798958254,20.0,216.08,215.95,22.61016996]
[1733798958425,0.12549,216.07,215.95,22.61016996]
[1733798958846,0.12549,216.07,215.96,22.61016996]
[1733798959420,0.12549,216.09,215.96,22.61016996]
[1733798959850,0.12549,216.09,215.98,312.0]
[1733798960652,20.0,216.1,216.0,22.61016996]
[1733798960849,20.0,216.1,216.01,22.61016996]
[1733798961055,1.5818,216.11,216.02,22.61016996]
[1733798961257,1.5818,216.11,216.05,22.61016996]
[1733798961555,1.5818,216.11,216.03,22.61016996]
[1733798961854,1.5818,216.11,216.02,22.61016996]
[1733798962649,1.5818,216.11,216.03,22.61016996]
[1733798963655,1.5818,216.11,216.06,312.0]
[1733798964333,1.5818,216.11,216.03,22.61016996]
[1733798964334,1.5818,216.11,216.04,22.61016996]
[1733798964533,1.5818,216.11,216.05,22.61016996]
[1733798964958,1.5818,216.11,216.04,22.61016996]
[1733798965855,1.5818,216.11,216.02,22.61016996]
[1733798967358,20.0,216.1,215.99,22.61016996]
[1733798967527,20.0,216.1,215.98,22.61016996]
[1733798967941,0.12549,216.09,215.96,22.61016996]
[1733798968331,20.12549,216.09,215.95,22.61016996]
[1733798970344,0.12549,216.04,215.96,312.0]
[1733798970527,1.6063,216.03,215.91,22.61016996]
[1733798970744,1.6063,216.03,215.9,22.61016996]
[1733798971458,0.12549,216.02,215.9,22.61016996]
[1733798971658,0.12549,216.02,215.89,22.61016996]
[1733798971863,0.12549,216.02,215.84,6.0753]
[1733798972029,0.12549,216.02,215.81,1.6403]
[1733798972030,20.0,215.98,215.86,22.61016996]
[1733798973536,20.0,215.98,215.89,22.61016996]
[1733798973774,20.0,215.98,215.9,22.61016996]
[1733798974065,6.5227,216.01,215.93,22.61016996]
[1733798974236,6.5227,216.01,215.95,22.61016996]
[1733798974433,6.5227,216.01,215.94,22.61016996]
[1733798975453,6.5227,216.01,215.93,22.61016996]
[1733798976056,6.5227,216.01,215.94,22.61016996]
[1733798976270,6.5227,216.01,215.95,22.61016996]
[1733798976945,6.5227,216.01,215.97,312.0]
[1733798977465,1.6063,216.03,215.97,22.61016996]
[1733798977650,1.55,216.08,216.02,22.61016996]
[1733798977848,1.55,216.08,216.03,22.61016996]
[1733798978670,6.5692,216.11,216.03,22.61016996]
[1733798980549,6.5692,216.11,216.06,312.0]
[1733798983959,1.55,216.13,216.04,22.61016996]
[1733798984266,1.55,216.13,216.08,22.61016996]
[1733798984650,1.55,216.13,216.05,22.61016996]
[1733798985964,1.55,216.13,216.02,22.61016996]
[1733798986274,1.55,216.13,215.93,24.17006996]
[1733798986275,0.12549,216.12,215.93,24.17006996]
[1733798986457,0.12549,216.12,215.97,22.61016996]
[1733798986458,20.12549,216.12,215.97,22.61016996]
[1733798986954,20.12549,216.12,215.99,312.0]
[1733798987851,0.12549,216.12,216.0,22.61016996]
[1733798988173,0.12549,216.12,215.99,334.61016996]
[1733798988354,0.12549,216.12,215.99,312.0]
[1733798989284,0.12549,216.12,215.98,22.61016996]
[1733798989664,20.0,216.08,215.98,22.61016996]
[1733798989883,20.0,216.08,215.97,22.61016996]
[1733798990859,20.0,216.08,215.99,22.61016996]
[1733798991180,20.0,216.08,216.0,22.61016996]
[1733798992262,20.0,216.08,216.02,312.0]
[1733798993183,20.0,216.08,215.97,22.61016996]
[1733798993387,20.0,216.08,215.98,22.61016996]
[1733798994370,6.1901,216.11,216.03,22.61016996]
[1733798994558,6.1901,216.11,215.95,0.12549]
[1733798994559,6.1901,216.11,216.04,22.61016996]
[1733798995087,6.1901,216.11,216.03,22.61016996]
[1733798996172,6.1901,216.11,216.06,312.0]
[1733798997172,6.1901,216.11,216.01,22.61016996]
[1733798997794,6.1901,216.11,216.0,22.61016996]
[1733798998295,0.12549,216.1,216.0,22.61016996]
[1733798998495,6.1901,216.11,216.01,22.61016996]
[1733799000195,6.1901,216.11,216.02,312.0]
[1733799000370,6.1901,216.11,216.05,22.61016996]
[1733799000581,6.1901,216.11,216.06,22.61016996]
[1733799000889,6.1901,216.11,215.94,13.86]
[1733799000890,6.1901,216.11,216.04,22.61016996]
[1733799001668,6.1901,216.11,216.05,22.61016996]
[1733799001882,6.1901,216.11,216.04,22.61016996]
[1733799002108,6.1901,216.11,216.05,22.61016996]
[1733799002682,6.1901,216.11,216.06,22.61016996]
[1733799003692,6.1901,216.11,216.06,334.61016996]
[1733799003988,6.1901,216.11,216.04,22.61016996]
[1733799005179,6.1901,216.11,216.04,14.14382376]
[1733799005693,1.55,216.13,216.04,14.14382376]
[1733799005899,6.5794,216.16,216.09,14.14382376]
[1733799007209,6.5794,216.16,216.09,312.0]
[1733799007410,1.85548182,216.27,216.0,1.85124345]
[1733799007411,1.6655,216.11,216.0,1.85124345]
[1733799007584,20.0,216.08,215.95,14.14382376]
[1733799007782,20.0,216.08,215.94,14.14382376]
[1733799008092,0.12549,216.07,215.93,14.14382376]
[1733799008272,20.0,216.03,215.93,14.14382376]
[1733799008471,20.0,216.03,215.91,14.14382376]
[1733799008472,0.12549,216.02,215.91,14.14382376]
[1733799008675,0.12549,216.02,215.88,14.14382376]
[1733799009274,0.12549,216.02,215.87,22.6664882]
[1733799010382,0.12549,216.02,215.88,312.0]
[1733799010582,0.12549,215.97,215.88,312.0]
[1733799010787,0.12549,215.95,215.83,22.6664882]
[1733799011401,0.12549,215.95,215.82,22.6664882]
[1733799011606,1.5222,215.96,215.88,22.6664882]
[1733799011795,1.5222,215.96,215.91,22.6664882]
[1733799011993,6.6246,216.01,215.92,22.6664882]
[1733799012303,6.6246,216.01,215.91,22.6664882]
[1733799013500,6.6246,216.01,215.92,22.6664882]
[1733799013713,6.6246,216.01,215.94,312.0]
[1733799014093,0.12549,216.0,215.94,312.0]
[1733799014302,0.12549,215.97,215.86,22.6664882]
[1733799014612,0.12549,215.97,215.84,22.6664882]
[1733799014780,0.12549,215.97,215.86,22.6664882]
[1733799014977,20.0,215.98,215.9,22.6664882]
[1733799015780,20.0,215.98,215.87,22.6664882]
[1733799016183,0.12549,215.97,215.85,22.6664882]
[1733799016370,0.12549,215.97,215.84,22.6664882]
[1733799016802,0.12549,215.97,215.85,22.6664882]
[1733799017009,6.6246,216.01,215.89,22.6664882]
[1733799017312,6.6246,216.01,215.89,312.0]
[1733799017313,0.12549,216.0,215.89,312.0]
[1733799018179,20.0,215.98,215.89,312.0]
[1733799018676,20.0,215.98,215.89,334.6664882]
[1733799018880,20.0,215.98,215.89,22.6664882]
[1733799019088,20.0,215.98,215.87,22.6664882]
[1733799019404,0.12549,215.97,215.86,22.6664882]
[1733799020190,0.12549,215.97,215.85,22.6664882]
[1733799020702,0.12549,215.97,215.81,23.776884]
[1733799020703,20.0,215.94,215.82,22.6664882]
[1733799020921,20.0,215.94,215.84,22.6664882]
[1733799021095,8.1468,215.92,215.81,22.6664882]
[1733799021418,20.0,215.89,215.77,22.6664882]
[1733799021587,23.902374,215.88,215.76,0.5606986]
[1733799021917,0.12549,215.84,215.76,312.5606986]
[1733799022080,23.902374,215.84,215.76,0.5606986]
[1733799022287,20.0,215.8,215.76,0.5606986]
[1733799024004,8.1468,215.83,215.76,0.5606986]
[1733799025297,20.0,215.8,215.76,0.5606986]
[1733799025713,0.12549,215.79,215.76,0.5606986]
[1733799026112,23.902374,215.79,215.76,0.5606986]
[1733799026285,43.902374,215.77,215.76,9.86e-05]
[1733799026480,20.0,215.73,215.59,14.10437909]
[1733799026683,20.0,215.73,215.61,29.71867774]
[1733799027494,20.0,215.73,215.62,22.6664882]
[1733799027807,20.0,215.74,215.66,22.6664882]
[1733799028110,7.6967,215.77,215.68,22.6664882]
[1733799028303,7.6967,215.77,215.71,312.0]
[1733799029301,7.6967,215.77,215.66,22.6664882]
[1733799029496,7.6967,215.77,215.64,22.6664882]
[1733799029497,20.0,215.74,215.64,22.6664882]
[1733799029922,20.0,215.74,215.63,22.6664882]
[1733799030228,20.0,215.74,215.56,13.48559342]
[1733799030229,0.12549,215.73,215.62,22.6664882]
[1733799030618,0.12549,215.73,215.54,0.5606986]
[1733799030619,0.12549,215.73,215.61,22.6664882]
[1733799030825,23.902374,215.73,215.6,22.6664882]
[1733799031003,23.902374,215.73,215.54,0.5606986]
[1733799031004,0.12549,215.69,215.57,22.6664882]
[1733799031332,20.0,215.65,215.55,22.6664882]
[1733799031632,21.6388,215.65,215.54,23.2271868]
[1733799031796,21.6388,215.65,215.54,0.5606986]
[1733799031997,0.12549,215.64,215.54,0.5606986]
[1733799032205,23.902374,215.64,215.54,0.5606986]
[1733799032413,20.0,215.61,215.54,312.5606986]
[1733799032723,29.960274,215.6,215.54,0.5606986]
[1733799033233,6.0579,215.6,215.54,0.5606986]
[1733799034125,0.12549,215.59,215.54,0.5606986]
[1733799034324,0.12549,215.56,215.54,0.5606986]
[1733799035132,20.0,215.51,215.34,1.81173381]
[1733799035313,20.0,215.51,215.32,0.5606986]
[1733799035314,0.12549,215.48,215.35,22.6664882]
[1733799035818,20.0,215.46,215.38,312.0]
[1733799035996,20.0,215.45,215.32,23.2271868]
[1733799036191,0.12549,215.44,215.32,0.5606986]
[1733799036424,23.902374,215.39,215.32,0.5606986]
[1733799036800,20.0,215.36,215.32,0.5606986]
[1733799037141,1.6388,215.4,215.34,22.6664882]
[1733799037431,0.12549,215.45,215.34,22.6664882]
[1733799037598,23.902374,215.45,215.32,23.2271868]
[1733799037805,20.0,215.42,215.32,23.2271868]
[1733799038099,43.902374,215.37,215.32,0.5606986]
[1733799038517,43.902374,215.35,215.32,0.5606986]
[1733799039404,20.12549,215.35,215.32,0.5606986]
[1733799039599,1.6388,215.36,215.32,0.5606986]
[1733799040026,20.0,215.33,215.32,0.5606986]
[1733799040624,43.902374,215.33,215.32,0.5606986]
[1733799041436,43.902374,215.33,215.08,11.6232]
[1733799041437,30.384674,215.32,215.08,11.6232]
[1733799041636,0.12549,215.28,215.14,22.6664882]
[1733799041932,20.12549,215.28,215.13,22.6664882]
[1733799042118,20.12549,215.28,215.12,22.6664882]
[1733799042423,20.0,215.27,215.11,0.5606986]
[1733799042630,0.12549,215.24,215.11,0.5606986]
[1733799042809,0.12549,215.24,215.12,312.0]
[1733799043443,1.611,215.25,215.16,22.6664882]
[1733799043643,8.0933,215.32,215.2,22.6664882]
[1733799043847,8.0933,215.32,215.11,20.5606986]
[1733799044048,8.0933,215.32,215.19,22.6664882]
[1733799044222,8.0933,215.32,215.18,22.6664882]
[1733799044427,8.0933,215.32,215.14,22.6664882]
[1733799044638,10.0,215.31,215.11,23.2271868]
[1733799044842,0.12549,215.28,215.11,0.5606986]
[1733799045018,20.0,215.26,215.11,0.5606986]
[1733799045224,0.12549,215.25,215.11,0.5606986]
[1733799045842,0.12549,215.26,215.13,22.6664882]
[1733799046048,0.12549,215.28,215.15,22.6664882]
[1733799046348,20.0,215.29,215.16,312.0]
[1733799046550,6.23564641,215.35,215.16,334.6664882]
[1733799047063,10.0,215.29,215.11,23.2271868]
[1733799047238,16.23564641,215.31,215.11,23.2271868]
[1733799047556,6.23564641,215.31,215.13,22.6664882]
[1733799047729,20.0,215.28,215.14,22.6664882]
[1733799047929,3.09157463,215.4,215.17,22.6664882]
[1733799047930,10.0,215.37,215.17,22.6664882]
[1733799048240,16.23564641,215.39,215.2,22.6664882]
[1733799048470,6.23564641,215.39,215.21,22.6664882]
[1733799048625,16.23564641,215.39,215.2,22.6664882]
[1733799048825,6.23564641,215.39,215.21,22.6664882]
[1733799049148,20.0,215.41,215.22,22.6664882]
[1733799050155,10.0,215.44,215.24,22.6664882]
[1733799050329,6.4823,215.32,215.26,22.6664882]
[1733799050531,6.4823,215.32,215.18,6.064]
[1733799050532,6.4823,215.32,215.25,22.6664882]
[1733799050926,6.4823,215.32,215.24,22.6664882]
[1733799051124,6.4823,215.37,215.26,22.6664882]
[1733799051352,6.4823,215.37,215.25,22.6664882]
[1733799051651,0.12549,215.36,215.21,22.6664882]
[1733799052154,20.0,215.34,215.23,22.6664882]
[1733799052849,20.0,215.34,214.85,16.19453409]
[1733799052850,0.12549,215.33,215.2,22.6664882]
[1733799053154,0.12549,215.33,215.18,22.6664882]
[1733799053331,20.12549,215.33,215.16,22.6664882]
[1733799053532,0.12549,215.28,215.11,0.5606986]
[1733799053852,0.12549,215.28,215.11,23.2271868]
[1733799054245,0.12549,215.28,215.12,22.6664882]
[1733799054857,0.12549,215.28,215.13,22.6664882]
[1733799055356,0.12549,215.28,215.12,22.6664882]
[1733799055852,0.12549,215.28,215.11,23.2271868]
[1733799056060,0.12549,215.28,215.13,22.6664882]
[1733799056542,20.0,215.29,215.16,22.6664882]
[1733799057347,20.0,215.29,215.17,22.6664882]
[1733799057546,20.0,215.29,215.14,22.6664882]
[1733799057750,20.0,215.29,215.16,22.6664882]
[1733799057949,20.0,215.29,215.17,22.6664882]
[1733799058254,20.0,215.29,215.18,22.6664882]
[1733799058434,8.0933,215.32,215.18,22.6664882]
[1733799058633,8.0933,215.32,215.21,22.6664882]
[1733799058840,8.0933,215.32,215.24,22.6664882]
[1733799059059,8.0933,215.32,215.23,22.6664882]
[1733799060078,8.0933,215.32,215.24,312.0]
[1733799061268,8.0933,215.32,215.19,22.6664882]
[1733799061452,8.0933,215.32,215.19,0.12549]
[1733799061852,8.0933,215.32,215.2,22.6664882]
[1733799062192,8.0933,215.32,215.22,22.6664882]
[1733799062554,8.0933,215.32,215.24,22.6664882]
[1733799062860,8.0933,215.32,215.25,22.6664882]
[1733799063066,8.0933,215.32,215.23,22.6664882]
[1733799064276,8.0933,215.32,215.17,23.902374]
[1733799064277,6.4823,215.37,215.3,334.6664882]
[1733799064463,6.4823,215.37,215.32,22.6664882]
[1733799064648,8.0933,215.49,215.32,22.6664882]
[1733799064845,8.0933,215.49,215.33,22.6664882]
[1733799065162,8.0933,215.49,215.38,22.6664882]
[1733799065372,8.0933,215.49,215.36,22.6664882]
[1733799065545,8.0933,215.49,215.27,32.6664882]
[1733799065546,8.0933,215.49,215.38,22.6664882]
[1733799066067,8.0933,215.49,215.36,22.6664882]
[1733799066271,8.0933,215.49,215.35,22.6664882]
[1733799066447,8.0933,215.49,215.36,22.6664882]
[1733799066763,8.0933,215.49,215.38,22.6664882]
[1733799066965,8.0933,215.49,215.37,22.6664882]
[1733799067148,8.0933,215.49,215.38,22.6664882]
[1733799067347,8.0933,215.49,215.4,22.6664882]
[1733799067651,8.0933,215.49,215.31,31.6109]
[1733799067652,6.4823,215.49,215.43,22.6664882]
[1733799067855,8.1338,215.55,215.46,22.6664882]
[1733799068057,8.1338,215.55,215.45,22.6664882]
[1733799068840,8.1338,215.55,215.49,22.6664882]
[1733799069066,8.1338,215.55,215.48,22.6664882]
[1733799069248,8.1338,215.55,215.47,22.6664882]
[1733799069452,8.1338,215.55,215.5,22.6664882]
[1733799069703,6.5915,215.61,215.51,22.6664882]
[1733799069878,6.5915,215.61,215.41,20.0]
[1733799069879,6.5915,215.61,215.53,22.6664882]
[1733799071246,6.5915,215.61,215.54,22.6664882]
[1733799071446,6.5915,215.61,215.54,334.6664882]
[1733799072047,6.5915,215.61,215.54,22.6664882]
[1733799072366,6.5915,215.61,215.51,22.6664882]
[1733799072566,6.5915,215.61,215.53,22.6664882]
[1733799073149,20.0,215.58,215.48,22.6664882]
[1733799073458,20.0,215.58,215.46,22.6664882]
[1733799073665,20.0,215.58,215.45,22.6664882]
[1733799073982,0.12549,215.57,215.41,22.6664882]
[1733799074186,0.12549,215.57,215.4,22.6664882]
[1733799074487,0.12549,215.57,215.37,22.6664882]
[1733799074661,1.5957,215.51,215.36,22.6664882]
[1733799075084,0.12549,215.5,215.37,22.6664882]
[1733799075288,0.12549,215.5,215.36,334.6664882]
[1733799075448,0.12549,215.5,215.33,22.6664882]
[1733799075651,20.0,215.47,215.29,22.6664882]
[1733799075860,0.12549,215.44,215.28,22.6664882]
[1733799076389,20.0,215.48,215.18,23.2036]
[1733799076390,0.12549,215.42,215.27,22.6664882]
[1733799076587,20.0,215.43,215.3,22.6664882]
[1733799076762,0.12549,215.45,215.3,22.6664882]
[1733799076964,20.0,215.43,215.28,22.6664882]
[1733799077259,20.12549,215.42,215.28,37.03888438]
[1733799077572,20.12549,215.42,215.27,37.03888438]
[1733799077767,20.12549,215.42,215.25,37.03888438]
[1733799078071,0.12549,215.42,215.28,37.03888438]
[1733799078265,0.12549,215.42,215.25,37.03888438]
[1733799078452,0.12549,215.42,215.23,37.03888438]
[1733799078654,40.0,215.43,215.16,37.03888438]
[1733799078655,0.12549,215.36,215.22,37.03888438]
[1733799078860,20.0,215.37,215.26,37.03888438]
[1733799079078,20.0,215.37,215.27,37.03888438]
[1733799079276,6.476,215.4,215.31,37.03888438]
[1733799079489,6.476,215.4,215.32,37.03888438]
[1733799079780,6.476,215.4,215.35,37.03888438]
[1733799079958,6.476,215.4,215.31,37.03888438]
[1733799080158,6.476,215.4,215.34,37.03888438]
[1733799080354,6.476,215.47,215.36,37.03888438]
[1733799080596,6.476,215.47,215.41,37.03888438]
[1733799080966,6.476,215.47,215.39,37.03888438]
[1733799081168,6.476,215.59,215.42,37.03888438]
[1733799081372,8.0221,215.59,215.44,37.03888438]
[1733799081567,8.0221,215.59,215.49,37.03888438]
[1733799081776,8.0221,215.59,215.47,0.12549]
[1733799081777,8.0221,215.59,215.5,37.03888438]
[1733799082192,8.0221,215.59,215.42,37.03888438]
[1733799082367,12.96014547,215.59,215.41,0.12549]
[1733799082687,12.96014547,215.59,215.41,37.16437438]
[1733799082891,12.96014547,215.59,215.42,37.03888438]
[1733799083272,12.96014547,215.59,215.41,0.12549]
[1733799083273,8.0221,215.59,215.45,37.03888438]
[1733799083477,8.0221,215.59,215.46,37.03888438]
[1733799083876,8.0221,215.59,215.49,37.03888438]
[1733799084168,8.0221,215.59,215.43,37.03888438]
[1733799084390,8.0221,215.59,215.45,37.03888438]
[1733799084593,8.0221,215.59,215.46,37.03888438]
[1733799084892,8.0221,215.59,215.44,37.03888438]
[1733799085089,8.0221,215.59,215.46,312.0]
[1733799085290,0.12549,215.58,215.42,37.03888438]
[1733799085497,0.12549,215.58,215.41,37.03888438]
[1733799085701,20.0,215.56,215.4,37.03888438]
[1733799085880,20.12549,215.55,215.38,37.03888438]
[1733799086383,20.12549,215.52,215.36,37.03888438]
[1733799086583,20.12549,215.52,215.28,6.1948]
[1733799086584,20.12549,215.52,215.37,37.03888438]
[1733799086777,20.0,215.53,215.39,37.03888438]
[1733799086969,0.12549,215.55,215.41,37.03888438]
[1733799087171,20.0,215.56,215.42,37.03888438]
[1733799087384,20.0,215.56,215.29,21.6122]
[1733799087385,0.12549,215.55,215.4,37.03888438]
[1733799087588,0.12549,215.55,215.38,37.03888438]
[1733799087986,20.0,215.53,215.35,37.03888438]
[1733799088184,20.0,215.51,215.37,37.03888438]
[1733799088394,20.0,215.51,215.38,37.03888438]
[1733799088599,20.0,215.51,215.37,37.03888438]
[1733799089373,20.0,215.51,215.35,349.03888438]
[1733799089374,0.12549,215.5,215.35,349.03888438]
[1733799089582,0.12549,215.5,215.34,37.03888438]
[1733799089792,0.12549,215.48,215.34,37.03888438]
[1733799090202,0.12549,215.48,215.31,37.03888438]
[1733799090384,0.12549,215.43,215.25,37.03888438]
[1733799090595,0.12549,215.41,215.25,37.03888438]
[1733799090786,0.12549,215.41,215.24,37.03888438]
[1733799090985,1.88021467,215.45,215.34,37.03888438]
[1733799091185,24.06718141,215.68,215.52,10.0]
[1733799091186,7.0335907,215.67,215.52,10.0]
[1733799091376,56.26872567,215.76,215.66,37.03888438]
[1733799091706,17.1384986,215.86,215.71,37.03888438]
[1733799091999,0.5606986,215.86,215.73,37.03888438]
[1733799092307,6.3267,215.81,215.69,37.03888438]
[1733799093379,16.3267,215.81,215.67,37.03888438]
[1733799094399,26.3267,215.81,215.67,37.03888438]
[1733799094600,16.3267,215.81,215.67,37.03888438]
[1733799095099,0.12549,215.8,215.69,37.03888438]
[1733799095297,6.3267,215.81,215.71,37.03888438]
[1733799095597,20.0,215.78,215.71,37.03888438]
[1733799096386,0.12549,215.77,215.67,37.03888438]
[1733799096781,20.12549,215.77,215.65,37.03888438]
[1733799097504,20.12549,215.77,215.67,37.03888438]
[1733799097686,0.12549,215.77,215.69,37.03888438]
[1733799097886,20.0,215.78,215.69,37.03888438]
[1733799098091,6.3267,215.81,215.69,37.03888438]
[1733799098905,6.3267,215.81,215.6,37.03888438]
[1733799098906,6.3267,215.81,215.65,37.03888438]
[1733799099105,6.3267,215.81,215.67,37.03888438]
[1733799099415,0.12549,215.77,215.65,37.03888438]
[1733799100119,0.12549,215.77,215.53,16.5778]
[1733799100120,20.12549,215.77,215.62,37.03888438]
[1733799100410,0.12549,215.74,215.61,37.03888438]
[1733799100611,20.0,215.7,215.58,37.03888438]
[1733799100810,1.5234,215.68,215.57,37.03888438]
[1733799101112,1.5234,215.68,215.56,37.03888438]
[1733799101113,0.12549,215.67,215.56,37.03888438]
[1733799101280,0.12549,215.67,215.54,37.03888438]
[1733799101485,20.0,215.63,215.5,37.03888438]
[1733799101681,20.0,215.63,215.49,37.03888438]
[1733799101682,0.12549,215.62,215.49,37.03888438]
[1733799102108,20.12549,215.62,215.49,37.03888438]
[1733799102314,20.12549,215.62,215.38,37.03888438]
[1733799102315,20.12549,215.62,215.48,37.03888438]
[1733799102504,20.12549,215.62,215.47,37.03888438]
[1733799102711,20.12549,215.62,215.48,37.03888438]
[1733799103094,20.12549,215.62,215.49,37.03888438]
[1733799103295,20.12549,215.62,215.5,37.03888438]
[1733799103690,0.12549,215.62,215.47,37.03888438]
[1733799104012,20.12549,215.62,215.46,37.03888438]
[1733799104389,0.12549,215.62,215.47,37.03888438]
[1733799104594,0.12549,215.62,215.46,37.03888438]
[1733799106205,0.12549,215.62,215.5,37.03888438]
[1733799106416,6.624,215.66,215.5,37.03888438]
[1733799106417,6.624,215.66,215.51,37.03888438]
[1733799106609,6.624,215.66,215.5,312.0]
[1733799106610,6.624,215.66,215.55,37.03888438]
[1733799108090,20.0,215.63,215.55,37.03888438]
[1733799108488,20.0,215.63,215.54,37.03888438]
[1733799108713,20.0,215.63,215.51,37.03888438]
[1733799110009,20.0,215.63,215.53,37.03888438]
[1733799110215,20.0,215.63,215.55,37.03888438]
[1733799110420,6.624,215.66,215.55,37.03888438]
[1733799111402,6.624,215.66,215.54,37.03888438]
[1733799112197,6.624,215.66,215.56,37.03888438]
[1733799112398,6.624,215.66,215.58,37.03888438]
[1733799112901,6.624,215.66,215.56,37.03888438]
[1733799113820,6.624,215.66,215.55,37.03888438]
[1733799114423,20.0,215.63,215.51,37.03888438]
[1733799116124,0.12549,215.62,215.48,37.03888438]
[1733799116909,0.12549,215.62,215.47,37.03888438]
[1733799117114,0.12549,215.62,215.46,37.03888438]
[1733799117432,20.12549,215.62,215.46,349.03888438]
[1733799117726,20.12549,215.62,215.47,37.03888438]
[1733799118214,20.0,215.63,215.47,37.03888438]
[1733799118524,0.12549,215.62,215.47,37.03888438]
[1733799119319,0.12549,215.62,215.46,349.03888438]
[1733799119527,20.0,215.58,215.43,37.03888438]
[1733799119827,0.12549,215.57,215.43,37.03888438]
[1733799120002,0.12549,215.54,215.37,37.03888438]
[1733799120198,0.12549,215.52,215.36,18.583161]
[1733799120417,0.12549,215.5,215.36,18.583161]
[1733799120607,20.12549,215.46,215.29,37.03888438]
[1733799120807,0.12549,215.41,215.27,37.03888438]
[1733799121029,0.12549,215.41,215.26,37.03888438]
[1733799121226,20.12549,215.41,215.24,37.03888438]
[1733799121632,20.12549,215.41,215.26,37.03888438]
[1733799121930,0.12549,215.41,215.27,37.03888438]
[1733799122101,0.12549,215.41,215.26,37.03888438]
[1733799122507,0.12549,215.41,215.26,349.03888438]
[1733799123024,0.12549,215.41,215.29,37.03888438]
[1733799123437,0.12549,215.41,215.22,37.03888438]
[1733799123730,0.12549,215.39,215.21,37.03888438]
[1733799123927,0.12549,215.39,215.2,37.03888438]
[1733799124107,0.12549,215.39,215.21,37.03888438]
[1733799124440,0.12549,215.39,215.15,18.601469]
[1733799124441,28.1474,215.38,215.15,18.601469]
[1733799124604,20.12549,215.35,215.14,17.16803371]
[1733799124800,0.12549,215.33,215.15,37.03888438]
[1733799125205,0.12549,215.33,215.14,17.16803371]
[1733799125400,6.624,215.32,215.14,17.16803371]
[1733799125626,20.0,215.29,215.14,17.16803371]
[1733799125832,0.12549,215.28,215.14,17.16803371]
[1733799126008,0.12549,215.28,215.14,329.16803371]
[1733799126213,1.5234,215.27,215.14,329.16803371]
[1733799126430,0.12549,215.26,215.14,17.16803371]
[1733799126805,0.12549,215.24,215.14,17.16803371]
[1733799127010,0.12549,215.21,215.14,14.40853371]
[1733799127227,20.0,215.22,215.14,14.40853371]
[1733799127228,0.12549,215.15,215.14,10.38543371]
[1733799127409,0.12549,215.15,215.14,3.2174]
[1733799127606,0.12549,215.15,215.11,0.5606986]
[1733799128837,20.12549,215.15,215.11,0.5606986]
[1733799129132,20.12549,215.15,214.91,1.5519]
[1733799129133,20.12549,215.13,214.95,37.03888438]
[1733799129350,0.12549,215.06,214.92,37.03888438]
[1733799129526,20.12549,215.06,214.89,0.5606986]
[1733799129838,20.12549,215.06,214.91,37.03888438]
[1733799130038,20.12549,215.06,214.92,37.03888438]
[1733799130232,0.12549,215.06,214.92,37.03888438]
[1733799130415,0.12549,215.06,214.91,37.03888438]
[1733799130932,0.12549,215.06,214.89,0.5606986]
[1733799130933,0.12549,215.06,214.9,37.03888438]
[1733799131123,20.12549,215.06,214.89,0.5606986]
[1733799131320,40.12549,215.06,214.89,0.5606986]
[1733799131523,10.0,215.03,214.89,0.5606986]
[1733799131719,0.12549,214.99,214.89,0.5606986]
[1733799131930,20.12549,214.99,214.89,0.5606986]
[1733799132642,0.12549,214.97,214.89,0.5606986]
[1733799133435,0.12549,214.98,214.89,0.5606986]
[1733799134055,20.0,214.99,214.89,0.5606986]
[1733799134348,6.417,215.02,214.89,0.5606986]
[1733799135142,16.417,215.02,214.89,0.5606986]
[1733799135318,0.12549,215.01,214.89,0.5606986]